[Event "Marienbad B1-IM 2024"]
[Site "Marianske Lazne"]
[Date "2024.01.19"]
[Round "8.14"]
[White "Ochedzan, Tymon"]
[Black "Dobrowolski, Piotr"]
[Result "1/2-1/2"]
[ECO "C41"]
[WhiteElo "2166"]
[BlackElo "2401"]
[Annotator "RC"]
[PlyCount "105"]
[EventDate "2024.01.10"]
[EventType "tourn"]
[EventCountry "CZE"]
[SourceTitle "playchess.com"]
[Source "ChessBase"]
[SourceQuality "1"]
[TimeControl "40/5400+30:1800+30"]

1. e4 {[%emt 0:00:02]} e5 {[%emt 0:00:50]} 2. Nf3 {[%emt 0:00:08]} d6 {[%emt 0:00:40]} 3. d4 {[%emt 0:02:18]} exd4 {[%emt 0:00:35]} 4. Nxd4 {[%emt 0:00:33]} Nf6 {[%emt 0:00:21]} 5. Nc3 {[%emt 0:02:20]} Be7 {[%emt 0:00:47]} 6. f3 {[%emt 0:04:58]} O-O {[%emt 0:03:21]} 7. Be3 {[%emt 0:00:26]} d5 {[%emt 0:05:25]} 8. e5 {[%emt 0:05:04]} Nfd7 {[%emt 0:14:16]} 9. f4 {[%emt 0:06:01]} Nb6 {[%emt 0:19:54]} 10. Nb3 {[%emt 0:01:58]} c6 {[%emt 0:02:25]} 11. Bd3 {[%emt 0:05:25]} Nc4 {[%emt 0:01:54]} 12. Bxc4 {[%emt 0:03:35]} dxc4 {[%emt 0:00:12]} 13. Nd2 {[%emt 0:00:37]} Be6 {[%emt 0:05:21]} 14. O-O {[%emt 0:02:00]} f5 {[%emt 0:01:09]} 15. exf6 {[%emt 0:05:51]} Bxf6 {[%emt 0:00:08]} 16. Qe2 {[%emt 0:03:22]} Qa5 {[%emt 0:07:00]} 17. Bf2 {[%emt 0:12:13]} Re8 {[%emt 0:02:39]} 18. Nce4 {[%emt 0:06:12]} Nd7 {[%emt 0:03:08]} 19. Nxc4 {[%emt 0:02:52]} Qa6 {[%emt 0:02:39]} 20. Ned6 {[%emt 0:02:38]} Bxc4 {[%emt 0:00:27]} 21. Qxc4+ {[%emt 0:00:11]} Qxc4 {[%emt 0:00:04]} 22. Nxc4 {[%emt 0:00:04]} Re4 {[%emt 0:02:49]} 23. Rad1 {[%emt 0:04:53]} Nf8 {[%emt 0:02:09]} 24. b3 {[%emt 0:00:49]} Rxf4 {[%emt 0:00:56]} 25. Na5 {[%emt 0:01:45]} Re4 {[%emt 0:04:25]} 26. Rfe1 {[%emt 0:04:32]} Rxe1+ {[%emt 0:01:24]} 27. Bxe1 {[%emt 0:00:42]} Re8 {[%emt 0:03:38]} 28. Nxb7 {[%emt 0:02:54]} Re2 {[%emt 0:02:46]} 29. Bd2 {[%emt 0:00:16]} Bd4+ {[%emt 0:00:04]} 30. Kh1 {[%emt 0:00:06]} Ng6 {[%emt 0:07:51]} 31. Nd6 {[%emt 0:04:30]} Bc5 {[%emt 0:01:30]} 32. Nf5 {[%emt 0:02:31]} Bf2 {[%emt 0:01:51]} 33. h3 {[%emt 0:01:47]} h5 {[%emt 0:00:20]} 34. g3 {[%emt 0:03:02]} h4 {[%emt 0:02:28]} 35. g4 {[%emt 0:01:42]} Bg3 {[%emt 0:00:38]} 36. Nd4 {[%emt 0:03:51]} Rh2+ {[%emt 0:00:19]} 37. Kg1 {[%emt 0:00:04]} Ne5 {[%emt 0:00:17]} 38. b4 {[%emt 0:03:55]} Rxh3 {[%emt 0:00:31]} 39. Rf1 {[%emt 0:01:00]} Rh2 {[%emt 0:01:14]} 40. Bf4 {[%emt 0:00:51]} Nxg4 {[%emt 0:01:01]} 41. Bxg3 {[%emt 0:04:56]} hxg3 {[%emt 0:00:15]} 42. Rf3 {[%emt 0:01:38]} Rd2 {[%emt 0:02:33]} 43. Nxc6 {[%emt 0:01:48]} Rxc2 {[%emt 0:00:48]} 44. Ne7+ {[%emt 0:00:53]} Kh7 {[%emt 0:00:01]} 45. Rxg3 {[%emt 0:00:46]} Nh6 {[%emt 0:00:09]} 46. a4 {[%emt 0:01:28]} Rc7 {[%emt 0:03:02]} 47. Nd5 {[%emt 0:01:25]} Rb7 {[%emt 0:00:52]} 48. Kf2 {[%emt 0:01:12]} Nf5 {[%emt 0:00:13]} 49. Rg5 {[%emt 0:01:47]} Ne7 {[%emt 0:01:09]} 50. b5 {[%emt 0:01:42]} Kh6 {[%emt 0:00:57]} 51. Re5 {[%emt 0:00:06]} Nxd5 {[%emt 0:00:04]} 52. Rxd5 {[%emt 0:00:04]} g5 {[%emt 0:00:59]} 53. Kg3 {[%emt 0:01:04]} 1/2-1/2

[Event "Marienbad B1-IM 2024"]
[Site "Marianske Lazne"]
[Date "2024.01.19"]
[Round "8.15"]
[White "Ni, Viktorija"]
[Black "Lima, Stefan Moisei VIeira"]
[Result "1-0"]
[ECO "D85"]
[WhiteElo "2138"]
[BlackElo "2173"]
[Annotator "NA RC"]
[PlyCount "71"]
[EventDate "2024.01.10"]
[EventType "tourn"]
[EventCountry "CZE"]
[SourceTitle "playchess.com"]
[Source "ChessBase"]
[SourceQuality "1"]
[TimeControl "40/5400+30:1800+30"]

1. d4 {[%emt 0:02:09]} Nf6 {[%emt 0:00:22]} 2. c4 {[%emt 0:00:09]} g6 {[%emt 0:00:18]} 3. Nc3 {[%emt 0:00:05]} d5 {[%emt 0:00:08]} 4. cxd5 {[%emt 0:00:03]} Nxd5 {[%emt 0:00:08]} 5. e4 {[%emt 0:00:03]} Nxc3 {[%emt 0:00:10]} 6. bxc3 {[%emt 0:00:04]} Bg7 {[%emt 0:00:09]} 7. Nf3 {[%emt 0:00:15]} c5 {[%emt 0:00:07]} 8. Bb5+ {[%emt 0:01:03]} Bd7 {[%emt 0:07:16]} 9. Bxd7+ {[%emt 0:01:49]} Qxd7 {[%emt 0:00:14]} 10. O-O {[%emt 0:01:24]} O-O {[%emt 0:09:37]} 11. Be3 {[%emt 0:06:13]} Qc7 {[%emt 0:04:53]} 12. Qd2 {[%emt 0:08:27]} Rd8 {[%emt 0:05:30]} 13. Rac1 {[%emt 0:06:57]} Nc6 {[%emt 0:04:29]} 14. d5 {[%emt 0:06:12]} e6 {[%emt 0:08:45]} 15. c4 {[%emt 0:08:18]} b6 {[%emt 0:02:10]} 16. h3 {[%emt 0:12:46]} e5 {[%emt 0:11:15]} 17. Bh6 {[%emt 0:08:01]} Na5 {[%emt 0:01:44]} 18. Bxg7 {[%emt 0:04:27]} Kxg7 {[%emt 0:00:12]} 19. Nh2 {[%emt 0:00:45]} f6 {[%emt 0:06:08]} 20. Ng4 {[%emt 0:01:17]} g5 {[%emt 0:08:37]} 21. h4 {[%emt 0:02:32]} h6 {[%emt 0:01:40]} 22. Qe2 {[%emt 0:01:22]} Nb7 {[%emt 0:01:20]} 23. Rc3 {[%emt 0:07:19]} Nd6 {[%emt 0:02:49]} 24. Rf3 {[%emt 0:03:20]} Rf8 {[%emt 0:00:37]} 25. Rc1 {[%emt 0:05:40]} Rf7 {[%emt 0:07:34]} 26. hxg5 {[%emt 0:00:38]} hxg5 {[%emt 0:00:32]} 27. Rh3 {[%emt 0:00:12]} Rh8 {[%emt 0:01:26]} 28. Rcc3 {[%emt 0:00:40]} Rff8 {[%emt 0:00:58]} 29. Rcf3 {[%emt 0:02:52]} Qe7 {[%emt 0:02:54]} 30. Rxh8 {[%emt 0:01:01]} Kxh8 {[%emt 0:00:13]} 31. Rh3+ {[%emt 0:00:09]} Kg7 {[%emt 0:00:49]} 32. Rh6 {[%emt 0:00:17]} b5 {[%emt 0:08:41]} 33. Qe3 {[%emt 0:03:18]} f5 {[%emt 0:00:23]} 34. Re6 {[%emt 0:01:08]} Qd8 {[%emt 0:00:14]} 35. Nxe5 {[%emt 0:00:24]} Nxe4 {[%emt 0:02:26]} 36. Rg6+ {[%emt 0:00:15]} 1-0

[Event "Marienbad B1-IM 2024"]
[Site "Marianske Lazne"]
[Date "2024.01.20"]
[Round "9.11"]
[White "Lima, Stefan Moisei VIeira"]
[Black "Jurek, Josef"]
[Result "1-0"]
[ECO "A37"]
[WhiteElo "2173"]
[BlackElo "2242"]
[Annotator "RC"]
[PlyCount "117"]
[EventDate "2024.01.10"]
[EventType "tourn"]
[EventCountry "CZE"]
[SourceTitle "playchess.com"]
[Source "ChessBase"]
[SourceQuality "1"]
[TimeControl "40/5400+30:1800+30"]

1. c4 {[%emt 0:00:34]} c5 {[%emt 0:01:04]} 2. g3 {[%emt 0:00:21]} g6 {[%emt 0:00:26]} 3. Bg2 {[%emt 0:01:13]} Bg7 {[%emt 0:00:13]} 4. Nf3 {[%emt 0:00:34]} Nc6 {[%emt 0:00:24]} 5. Nc3 {[%emt 0:00:39]} e6 {[%emt 0:00:38]} 6. d4 {[%emt 0:20:43]} cxd4 {[%emt 0:00:39]} 7. Nb5 {[%emt 0:00:06]} d5 {[%emt 0:00:47]} 8. Qa4 {[%emt 0:11:04]} Nge7 {[%emt 0:03:22]} 9. cxd5 {[%emt 0:06:32]} exd5 {[%emt 0:05:14]} 10. O-O {[%emt 0:04:51]} O-O {[%emt 0:04:17]} 11. Nbxd4 {[%emt 0:00:52]} Bd7 {[%emt 0:06:19]} 12. Qd1 {[%emt 0:00:35]} Re8 {[%emt 0:06:56]} 13. Be3 {[%emt 0:01:03]} Nf5 {[%emt 0:02:18]} 14. Nxf5 {[%emt 0:14:29]} Bxf5 {[%emt 0:00:23]} 15. Qd2 {[%emt 0:02:49]} d4 {[%emt 0:06:29]} 16. Bg5 {[%emt 0:02:38]} Qb6 {[%emt 0:06:11]} 17. Rfe1 {[%emt 0:01:07]} Nb4 {[%emt 0:05:10]} 18. Nh4 {[%emt 0:02:11]} Be4 {[%emt 0:05:58]} 19. Bxe4 {[%emt 0:01:24]} Rxe4 {[%emt 0:00:15]} 20. Nf3 {[%emt 0:01:39]} Rae8 {[%emt 0:04:15]} 21. a3 {[%emt 0:02:20]} Nc6 {[%emt 0:03:37]} 22. Bh6 {[%emt 0:02:43]} Bh8 {[%emt 0:03:01]} 23. Rac1 {[%emt 0:00:50]} Qb5 {[%emt 0:04:36]} 24. Rc2 {[%emt 0:03:14]} Qh5 {[%emt 0:08:02]} 25. b4 {[%emt 0:01:30]} d3 {[%emt 0:03:17]} 26. exd3 {[%emt 0:01:45]} Rxe1+ {[%emt 0:03:58]} 27. Nxe1 {[%emt 0:00:02]} Nd4 {[%emt 0:01:58]} 28. Qe3 {[%emt 0:01:02]} Qb5 {[%emt 0:00:21]} 29. Qd2 {[%emt 0:02:27]} Nxc2 {[%emt 0:03:02]} 30. Nxc2 {[%emt 0:00:08]} Rd8 {[%emt 0:02:56]} 31. d4 {[%emt 0:00:06]} Qc4 {[%emt 0:00:54]} 32. Be3 {[%emt 0:00:05]} Bf6 {[%emt 0:01:19]} 33. Kg2 {[%emt 0:00:19]} Rc8 {[%emt 0:00:45]} 34. Ne1 {[%emt 0:00:54]} a6 {[%emt 0:01:23]} 35. Nf3 {[%emt 0:00:47]} Rd8 {[%emt 0:01:09]} 36. Bg5 {[%emt 0:00:21]} Bxg5 {[%emt 0:00:34]} 37. Qxg5 {[%emt 0:00:06]} Qd5 {[%emt 0:00:31]} 38. Qe3 {[%emt 0:00:35]} a5 {[%emt 0:01:29]} 39. g4 {[%emt 0:00:47]} axb4 {[%emt 0:01:59]} 40. axb4 {[%emt 0:00:01]} Qd6 {[%emt 0:01:17]} 41. Qg5 {[%emt 0:34:30]} Kg7 {[%emt 0:30:38]} 42. h4 {[%emt 0:00:17]} h6 {[%emt 0:00:53]} 43. Qd2 {[%emt 0:02:23]} Re8 {[%emt 0:00:00]} 44. g5 {[%emt 0:00:00]} hxg5 {[%emt 0:00:00]} 45. Nxg5 {[%emt 0:00:00]} Qd5+ {[%emt 0:00:00]} 46. f3 {[%emt 0:00:00]} Rd8 {[%emt 0:00:00]} 47. Qf4 {[%emt 0:00:00]} Qf5 {[%emt 0:00:00]} 48. Qe3 {[%emt 0:00:00]} Rc8 {[%emt 0:00:00]} 49. Kg3 {[%emt 0:00:00]} Rc4 {[%emt 0:00:00]} 50. Ne4 {[%emt 0:00:00]} Qd5 {[%emt 0:00:00]} 51. Qf4 {[%emt 0:00:00]} Qxd4 {[%emt 0:00:00]} 52. h5 {[%emt 0:00:00]} Qg1+ {[%emt 0:00:00]} 53. Kh3 {[%emt 0:00:00]} Qh1+ {[%emt 0:00:00]} 54. Kg3 {[%emt 0:00:00]} Rc6 {[%emt 0:00:00]} 55. Qe5+ {[%emt 0:00:00]} Kh7 {[%emt 0:00:53]} 56. Ng5+ {[%emt 0:00:00]} Kg8 {[%emt 0:01:21]} 57. Qe8+ {[%emt 0:00:00]} Kg7 {[%emt 0:00:01]} 58. Qxf7+ {[%emt 0:00:00]} Kh6 {[%emt 0:00:03]} 59. Qf8+ {[%emt 0:00:00]} 1-0

[Event "Marienbad B1-IM 2024"]
[Site "Marianske Lazne"]
[Date "2024.01.20"]
[Round "9.12"]
[White "Dobrowolski, Piotr"]
[Black "Ni, Viktorija"]
[Result "1-0"]
[ECO "D70"]
[WhiteElo "2401"]
[BlackElo "2138"]
[Annotator "RC"]
[PlyCount "119"]
[EventDate "2024.01.10"]
[EventType "tourn"]
[EventCountry "CZE"]
[SourceTitle "playchess.com"]
[Source "ChessBase"]
[SourceQuality "1"]
[TimeControl "40/5400+30:1800+30"]

1. d4 {[%emt 0:00:07]} Nf6 {[%emt 0:14:32]} 2. c4 {[%emt 0:00:17]} g6 {[%emt 0:02:52]} 3. Nf3 {[%emt 0:00:53]} Bg7 {[%emt 0:01:30]} 4. g3 {[%emt 0:01:36]} O-O {[%emt 0:01:27]} 5. Bg2 {[%emt 0:00:39]} d6 {[%emt 0:02:08]} 6. Nc3 {[%emt 0:01:19]} Re8 {[%emt 0:03:33]} 7. O-O {[%emt 0:01:45]} Bd7 {[%emt 0:00:53]} 8. e4 {[%emt 0:07:14]} e5 {[%emt 0:02:45]} 9. d5 {[%emt 0:02:33]} a5 {[%emt 0:03:44]} 10. b3 {[%emt 0:15:41]} Na6 {[%emt 0:02:44]} 11. Rb1 {[%emt 0:00:43]} Nc5 {[%emt 0:02:00]} 12. Re1 {[%emt 0:00:12]} c6 {[%emt 0:01:44]} 13. dxc6 {[%emt 0:08:50]} Bxc6 {[%emt 0:00:54]} 14. Bg5 {[%emt 0:00:33]} h6 {[%emt 0:01:50]} 15. Bxf6 {[%emt 0:01:16]} Qxf6 {[%emt 0:09:12]} 16. Bh3 {[%emt 0:11:16]} Red8 {[%emt 0:05:33]} 17. Kg2 {[%emt 0:07:35]} Bf8 {[%emt 0:08:20]} 18. a3 {[%emt 0:03:32]} b6 {[%emt 0:06:23]} 19. Nd5 {[%emt 0:10:38]} Bxd5 {[%emt 0:02:17]} 20. cxd5 {[%emt 0:03:56]} a4 {[%emt 0:00:42]} 21. b4 {[%emt 0:01:57]} Nb3 {[%emt 0:00:12]} 22. Nd2 {[%emt 0:00:44]} Nd4 {[%emt 0:01:41]} 23. Nf3 {[%emt 0:00:35]} Nb3 {[%emt 0:00:24]} 24. Nd2 {[%emt 0:01:25]} Nd4 {[%emt 0:00:21]} 25. Rc1 {[%emt 0:02:34]} Ra7 {[%emt 0:04:51]} 26. Nf3 {[%emt 0:01:37]} Nb3 {[%emt 0:00:36]} 27. Rc6 {[%emt 0:00:35]} Rb8 {[%emt 0:05:31]} 28. Re3 {[%emt 0:03:04]} h5 {[%emt 0:01:27]} 29. Rec3 {[%emt 0:00:45]} Qe7 {[%emt 0:03:13]} 30. Kg1 {[%emt 0:03:30]} Kh7 {[%emt 0:01:42]} 31. Bf1 {[%emt 0:01:18]} Bg7 {[%emt 0:04:13]} 32. h4 {[%emt 0:01:30]} Bh6 {[%emt 0:03:08]} 33. Bd3 {[%emt 0:03:24]} Qd8 {[%emt 0:03:58]} 34. Bc2 {[%emt 0:01:19]} Nd4 {[%emt 0:00:04]} 35. Nxd4 {[%emt 0:00:26]} exd4 {[%emt 0:00:02]} 36. Rf3 {[%emt 0:01:32]} Bg7 {[%emt 0:00:30]} 37. Bxa4 {[%emt 0:01:06]} b5 {[%emt 0:01:17]} 38. Bc2 {[%emt 0:00:20]} Rba8 {[%emt 0:00:37]} 39. Kg2 {[%emt 0:00:34]} Kg8 {[%emt 0:00:37]} 40. Qc1 {[%emt 0:00:31]} Kh7 {[%emt 0:00:24]} 41. Bd3 {[%emt 0:04:41]} Qe7 {[%emt 0:04:36]} 42. Bxb5 {[%emt 0:06:52]} Qxe4 {[%emt 0:04:19]} 43. a4 {[%emt 0:00:25]} Qxd5 {[%emt 0:01:14]} 44. Qc4 {[%emt 0:03:48]} Qe5 {[%emt 0:14:58]} 45. Rc8 {[%emt 0:01:45]} d5 {[%emt 0:00:44]} 46. Qc6 {[%emt 0:00:12]} Rxc8 {[%emt 0:00:31]} 47. Qxc8 {[%emt 0:00:05]} Rc7 {[%emt 0:00:14]} 48. Qb8 {[%emt 0:04:11]} Qe7 {[%emt 0:00:49]} 49. Qe8 {[%emt 0:01:59]} Qe4 {[%emt 0:04:53]} 50. Bc6 {[%emt 0:04:11]} Re7 {[%emt 0:01:56]} 51. Qa8 {[%emt 0:00:07]} Re5 {[%emt 0:01:20]} 52. Qa6 {[%emt 0:00:09]} Re6 {[%emt 0:00:14]} 53. Qb5 {[%emt 0:00:04]} Rd6 {[%emt 0:00:38]} 54. Bb7 {[%emt 0:01:49]} Qe5 55. a5 {[%emt 0:00:44]} Qe4 {[%emt 0:01:08]} 56. Qd3 {[%emt 0:01:21]} Qe1 {[%emt 0:00:18]} 57. a6 {[%emt 0:01:19]} Qxb4 {[%emt 0:00:11]} 58. Qa3 {[%emt 0:00:07]} Qxa3 {[%emt 0:01:02]} 59. Rxa3 {[%emt 0:00:05]} d3 {[%emt 0:00:09]} 60. Rxd3 {[%emt 0:00:16]} 1-0

[Event "Marienbad B1-IM 2024"]
[Site "Marianske Lazne"]
[Date "2024.01.20"]
[Round "9.13"]
[White "Hak, David"]
[Black "Ochedzan, Tymon"]
[Result "1/2-1/2"]
[ECO "E11"]
[WhiteElo "2310"]
[BlackElo "2166"]
[Annotator "RC"]
[PlyCount "103"]
[EventDate "2024.01.10"]
[EventType "tourn"]
[EventCountry "CZE"]
[SourceTitle "playchess.com"]
[Source "ChessBase"]
[SourceQuality "1"]
[TimeControl "40/5400+30:1800+30"]

1. d4 {[%emt 0:01:26]} Nf6 {[%emt 0:00:05]} 2. Nf3 {[%emt 0:00:08]} e6 {[%emt 0:00:36]} 3. c4 {[%emt 0:01:15]} Bb4+ {[%emt 0:00:10]} 4. Nbd2 {[%emt 0:01:18]} Be7 {[%emt 0:00:23]} 5. g3 {[%emt 0:00:42]} O-O {[%emt 0:02:58]} 6. Bg2 {[%emt 0:00:09]} c5 {[%emt 0:03:08]} 7. O-O {[%emt 0:01:14]} Nc6 {[%emt 0:11:11]} 8. dxc5 {[%emt 0:05:47]} Bxc5 {[%emt 0:00:42]} 9. Nb3 {[%emt 0:01:15]} Be7 {[%emt 0:01:39]} 10. Nbd4 {[%emt 0:03:03]} d5 {[%emt 0:07:00]} 11. cxd5 {[%emt 0:01:44]} Nxd4 {[%emt 0:00:43]} 12. Nxd4 {[%emt 0:00:30]} Nxd5 {[%emt 0:00:28]} 13. Qb3 {[%emt 0:10:17]} Qb6 {[%emt 0:10:26]} 14. Rd1 {[%emt 0:03:05]} Rd8 {[%emt 0:05:19]} 15. e4 {[%emt 0:05:40]} Bc5 {[%emt 0:11:03]} 16. Ne2 {[%emt 0:13:39]} Nb4 {[%emt 0:03:20]} 17. Rxd8+ {[%emt 0:26:31]} Qxd8 {[%emt 0:00:05]} 18. Be3 {[%emt 0:00:42]} Bxe3 {[%emt 0:05:01]} 19. fxe3 {[%emt 0:00:58]} Nc6 {[%emt 0:08:30]} 20. Rd1 {[%emt 0:00:21]} Qb6 {[%emt 0:01:03]} 21. Qd3 {[%emt 0:03:12]} Bd7 {[%emt 0:02:17]} 22. Qc3 {[%emt 0:02:35]} Be8 {[%emt 0:02:04]} 23. Nf4 {[%emt 0:02:47]} Rd8 {[%emt 0:01:19]} 24. Rxd8 {[%emt 0:01:16]} Qxd8 {[%emt 0:00:08]} 25. e5 {[%emt 0:01:23]} Qg5 {[%emt 0:03:14]} 26. Bxc6 {[%emt 0:06:26]} Bxc6 {[%emt 0:00:10]} 27. Qd4 {[%emt 0:01:15]} h5 {[%emt 0:03:01]} 28. Kf2 {[%emt 0:01:48]} h4 {[%emt 0:01:48]} 29. Ne2 {[%emt 0:03:19]} hxg3+ {[%emt 0:01:29]} 30. hxg3 {[%emt 0:00:01]} Qf5+ {[%emt 0:01:44]} 31. Ke1 {[%emt 0:00:57]} Bd5 {[%emt 0:02:25]} 32. Nc3 {[%emt 0:00:01]} Qf3 {[%emt 0:01:05]} 33. Qf4 {[%emt 0:01:10]} Qh1+ {[%emt 0:01:14]} 34. Qf1 {[%emt 0:00:39]} Qxf1+ {[%emt 0:02:47]} 35. Kxf1 {[%emt 0:00:01]} Kh7 {[%emt 0:03:13]} 36. Ke2 {[%emt 0:01:04]} Kg6 {[%emt 0:00:19]} 37. Kd3 {[%emt 0:00:37]} Kg5 {[%emt 0:02:46]} 38. Nxd5 {[%emt 0:00:36]} exd5 {[%emt 0:00:05]} 39. Kd4 {[%emt 0:00:08]} Kg4 {[%emt 0:01:02]} 40. Kxd5 {[%emt 0:00:06]} Kxg3 {[%emt 0:00:47]} 41. Kd6 {[%emt 0:02:42]} Kf3 {[%emt 0:04:32]} 42. Ke7 {[%emt 0:00:19]} Ke4 {[%emt 0:00:45]} 43. Kxf7 {[%emt 0:00:26]} Kxe5 {[%emt 0:00:06]} 44. Kxg7 {[%emt 0:00:16]} Ke4 {[%emt 0:00:21]} 45. Kf6 {[%emt 0:00:19]} Kxe3 {[%emt 0:00:48]} 46. Ke5 {[%emt 0:00:12]} Kd3 {[%emt 0:00:27]} 47. Kd6 {[%emt 0:00:39]} Kc2 {[%emt 0:04:43]} 48. Kc7 {[%emt 0:00:37]} Kxb2 {[%emt 0:02:43]} 49. a4 {[%emt 0:00:25]} Ka3 {[%emt 0:01:25]} 50. a5 {[%emt 0:00:17]} Kb4 {[%emt 0:00:09]} 51. Kxb7 {[%emt 0:00:09]} Kxa5 {[%emt 0:00:03]} 52. Kxa7 {[%emt 0:00:10]} 1/2-1/2

[Event "Marienbad B1-IM 2024"]
[Site "Marianske Lazne"]
[Date "2024.01.20"]
[Round "9.14"]
[White "Kulkarni Bhakti"]
[Black "Rasmussen, Casper"]
[Result "1-0"]
[ECO "A35"]
[WhiteElo "2364"]
[BlackElo "2265"]
[Annotator "RC"]
[PlyCount "155"]
[EventDate "2024.01.10"]
[EventType "tourn"]
[EventCountry "CZE"]
[SourceTitle "playchess.com"]
[Source "ChessBase"]
[SourceQuality "1"]
[TimeControl "40/5400+30:1800+30"]

1. Nf3 {[%emt 0:05:15]} Nf6 {[%emt 0:00:43]} 2. c4 {[%emt 0:00:31]} c5 {[%emt 0:00:27]} 3. Nc3 {[%emt 0:04:44]} Nc6 {[%emt 0:00:18]} 4. e3 {[%emt 0:01:18]} e6 {[%emt 0:01:13]} 5. d4 {[%emt 0:00:26]} d5 {[%emt 0:00:33]} 6. a3 {[%emt 0:00:53]} a6 {[%emt 0:04:24]} 7. dxc5 {[%emt 0:09:20]} Bxc5 {[%emt 0:02:55]} 8. b4 {[%emt 0:00:06]} Be7 {[%emt 0:01:34]} 9. cxd5 {[%emt 0:03:31]} exd5 {[%emt 0:00:19]} 10. Be2 {[%emt 0:00:54]} O-O {[%emt 0:00:19]} 11. O-O {[%emt 0:00:13]} Bg4 {[%emt 0:16:43]} 12. Bb2 {[%emt 0:05:53]} Qd7 {[%emt 0:02:58]} 13. Rc1 {[%emt 0:08:11]} Rad8 {[%emt 0:02:14]} 14. Re1 {[%emt 0:06:43]} Rfe8 {[%emt 0:04:33]} 15. h3 {[%emt 0:05:41]} Bh5 {[%emt 0:06:25]} 16. Qb3 {[%emt 0:08:23]} Bxf3 {[%emt 0:13:18]} 17. Bxf3 {[%emt 0:00:32]} Ne5 {[%emt 0:00:02]} 18. Bxd5 {[%emt 0:07:23]} Nxd5 {[%emt 0:04:27]} 19. Red1 {[%emt 0:06:56]} Qe6 {[%emt 0:11:35]} 20. Nxd5 {[%emt 0:00:39]} Bf8 {[%emt 0:00:22]} 21. e4 {[%emt 0:02:12]} Ng6 {[%emt 0:02:06]} 22. Qe3 {[%emt 0:01:16]} Bd6 {[%emt 0:02:46]} 23. Re1 {[%emt 0:03:31]} Bb8 {[%emt 0:01:06]} 24. Nc7 {[%emt 0:01:31]} Bxc7 {[%emt 0:06:26]} 25. Rxc7 {[%emt 0:00:04]} Rd7 {[%emt 0:01:02]} 26. Rec1 {[%emt 0:06:14]} Red8 {[%emt 0:03:12]} 27. Rxd7 {[%emt 0:02:02]} Qxd7 {[%emt 0:00:51]} 28. f4 {[%emt 0:01:00]} Re8 {[%emt 0:02:55]} 29. f5 {[%emt 0:01:04]} Ne5 {[%emt 0:02:19]} 30. Rc5 {[%emt 0:02:44]} Nd3 {[%emt 0:02:24]} 31. Rd5 {[%emt 0:00:23]} Qxd5 {[%emt 0:00:10]} 32. Qg3 {[%emt 0:00:07]} Qe5 {[%emt 0:02:56]} 33. Bxe5 {[%emt 0:00:03]} Nxe5 {[%emt 0:00:09]} 34. f6 {[%emt 0:00:58]} Ng6 {[%emt 0:00:43]} 35. fxg7 {[%emt 0:00:29]} Kxg7 {[%emt 0:00:40]} 36. Qg4 {[%emt 0:00:48]} Re5 {[%emt 0:00:35]} 37. Qd7 {[%emt 0:00:23]} b5 {[%emt 0:01:55]} 38. Qd4 {[%emt 0:00:12]} Kg8 {[%emt 0:00:49]} 39. Kf2 {[%emt 0:00:48]} h6 {[%emt 0:00:50]} 40. g4 {[%emt 0:00:58]} Re6 {[%emt 0:00:36]} 41. Kg3 {[%emt 0:35:26]} Ne5 {[%emt 0:04:49]} 42. Kf4 {[%emt 0:00:00]} Ng6+ {[%emt 0:00:31]} 43. Ke3 {[%emt 0:00:00]} Ne5 {[%emt 0:01:27]} 44. Qc3 {[%emt 0:00:00]} Kh7 {[%emt 0:05:25]} 45. Qc7 {[%emt 0:00:00]} Kg7 {[%emt 0:02:25]} 46. Kd4 {[%emt 0:00:00]} Nc6+ {[%emt 0:07:10]} 47. Kc5 {[%emt 0:00:00]} Ne5 {[%emt 0:03:07]} 48. Qd8 {[%emt 0:00:00]} Ng6 {[%emt 0:01:22]} 49. Qd4+ {[%emt 0:00:00]} Kh7 {[%emt 0:00:11]} 50. h4 {[%emt 0:00:00]} Ne7 {[%emt 0:02:19]} 51. Qd7 {[%emt 0:00:00]} Kg7 {[%emt 0:00:11]} 52. Qxe6 {[%emt 0:00:00]} fxe6 {[%emt 0:00:08]} 53. Kb6 {[%emt 0:00:00]} Kf6 {[%emt 0:01:48]} 54. Kxa6 {[%emt 0:00:00]} Ke5 {[%emt 0:00:25]} 55. Kxb5 {[%emt 0:00:00]} Kxe4 {[%emt 0:00:16]} 56. Kc5 {[%emt 0:00:00]} Kf4 {[%emt 0:01:56]} 57. b5 {[%emt 0:00:00]} Nc8 {[%emt 0:01:40]} 58. a4 {[%emt 0:00:00]} e5 {[%emt 0:00:13]} 59. a5 {[%emt 0:00:00]} e4 {[%emt 0:00:30]} 60. b6 {[%emt 0:00:00]} Nd6 {[%emt 0:00:21]} 61. a6 {[%emt 0:00:24]} e3 {[%emt 0:00:22]} 62. b7 {[%emt 0:00:12]} e2 {[%emt 0:00:58]} 63. b8=Q {[%emt 0:00:11]} e1=Q {[%emt 0:00:11]} 64. Qxd6+ {[%emt 0:00:14]} Kxg4 {[%emt 0:00:34]} 65. Qd4+ {[%emt 0:00:16]} Kh5 {[%emt 0:01:22]} 66. a7 {[%emt 0:00:19]} Qe7+ {[%emt 0:01:50]} 67. Kb5 {[%emt 0:02:00]} Qe8+ {[%emt 0:00:29]} 68. Ka5 {[%emt 0:01:45]} Qe1+ {[%emt 0:00:54]} 69. Ka6 {[%emt 0:01:11]} Qe2+ {[%emt 0:00:38]} 70. Kb6 {[%emt 0:02:13]} Qe6+ {[%emt 0:00:03]} 71. Kb5 {[%emt 0:00:10]} Qe2+ {[%emt 0:00:53]} 72. Kb4 {[%emt 0:00:22]} Qe1+ {[%emt 0:00:39]} 73. Ka4 {[%emt 0:00:49]} Qe4 {[%emt 0:00:10]} 74. Qb4 {[%emt 0:00:45]} Qc2+ {[%emt 0:00:38]} 75. Kb5 {[%emt 0:00:35]} Qe2+ {[%emt 0:00:44]} 76. Qc4 {[%emt 0:00:26]} Qe8+ {[%emt 0:00:53]} 77. Qc6 {[%emt 0:01:01]} Qe2+ {[%emt 0:00:09]} 78. Kb6 {[%emt 0:00:11]} 1-0

[Event "Marienbad B1-IM 2024"]
[Site "Marianske Lazne"]
[Date "2024.01.20"]
[Round "9.15"]
[White "Zdybel, Przemyslaw"]
[Black "Ashwath, R.."]
[Result "1/2-1/2"]
[ECO "C60"]
[WhiteElo "2180"]
[BlackElo "2284"]
[Annotator "ChessBase"]
[PlyCount "28"]
[EventDate "2024.01.10"]
[EventType "tourn"]
[EventCountry "CZE"]
[SourceTitle "playchess.com"]
[Source "ChessBase"]
[SourceQuality "1"]
[TimeControl "40/5400+30:1800+30"]

1. e4 {[%emt 0:03:57]} e5 {[%emt 0:02:13]} 2. Nf3 {[%emt 0:00:07]} Nc6 {[%emt 0:00:04]} 3. Bb5 {[%emt 0:00:04]} Nge7 {[%emt 0:00:03]} 4. Nc3 {[%emt 0:01:05]} Ng6 {[%emt 0:01:02]} 5. d4 {[%emt 0:00:13]} exd4 {[%emt 0:00:50]} 6. Nxd4 {[%emt 0:00:06]} Nxd4 {[%emt 0:00:13]} 7. Qxd4 {[%emt 0:00:06]} c6 {[%emt 0:00:13]} 8. Be2 {[%emt 0:00:18]} Qb6 {[%emt 0:00:48]} 9. Qd3 {[%emt 0:00:12]} Be7 {[%emt 0:02:09]} 10. O-O {[%emt 0:00:34]} O-O {[%emt 0:01:01]} 11. a4 {[%emt 0:00:12]} d6 {[%emt 0:02:24]} 12. a5 {[%emt 0:03:21]} Qc7 13. f4 f5 14. Be3 fxe4 1/2-1/2